fUSD/lending_fUSD_20250123
["ID","MTS","AMOUNT","RATE_DAILY","PERIOD"]
[350086418,1737611444885,-522.49812734,0.00019178,2]
[350086419,1737611444894,-500.0,0.00019178,2]
[350086420,1737611444904,-500.0,0.00019178,2]
[350086421,1737611444913,-500.0,0.00019178,2]
[350086422,1737611444924,-500.32648021,0.00019178,2]
[350086423,1737611444933,-500.0,0.00019178,2]
[350086424,1737611444944,-500.0,0.00019178,2]
[350086425,1737611444954,-500.0,0.00019178,2]
[350086426,1737611444963,-500.0,0.00019178,2]
[350086427,1737611444973,-513.14861365,0.00019178,2]
[350086428,1737611444982,-500.0,0.00019178,2]
[350086429,1737611444992,-504.93008753,0.00019178,2]
[350086430,1737611445002,-500.0,0.00019178,2]
[350086431,1737611445012,-3281.81,0.00019178,2]
[350086432,1737611445021,-613.17227261,0.00019178,2]
[350086433,1737611445030,-1048.55,0.00019178,2]
[350086434,1737611445040,-511.47552411,0.00019178,2]
[350086435,1737611445049,-500.0,0.00019178,2]
[350086436,1737611445059,-500.0,0.00019178,2]
[350086437,1737611445068,-985.82,0.00019178,2]
[350086438,1737611445078,-886.58,0.00019178,2]
[350086439,1737611445087,-500.0,0.00019178,2]
[350086440,1737611445097,-500.0,0.00019178,2]
[350086441,1737611445107,-500.0,0.00019178,2]
[350086442,1737611445116,-500.0,0.00019178,2]
[350086443,1737611445126,-501.25577184,0.00019178,2]
[350086444,1737611445135,-500.0,0.00019178,2]
[350086445,1737611445144,-504.2405506,0.00019178,2]
[350086446,1737611445154,-500.0,0.00019178,2]
[350086447,1737611445163,-500.0,0.00019178,2]
[350086448,1737611445172,-500.0,0.00019178,2]
[350086449,1737611445181,-500.0,0.00019178,2]
[350086450,1737611445191,-500.0,0.00019178,2]
[350086451,1737611445200,-500.0,0.00019178,2]
[350086452,1737611445208,-500.0,0.00019178,2]
[350086453,1737611445218,-500.0,0.00019178,2]
[350086454,1737611445228,-500.0,0.00019178,2]
[350086455,1737611445238,-500.0,0.00019178,2]
[350086456,1737611445247,-500.0,0.00019178,2]
[350086457,1737611445256,-500.0,0.00019178,2]
[350086458,1737611445267,-1302.95,0.00019178,2]
[350086459,1737611445276,-500.0,0.00019178,2]
[350086460,1737611445285,-500.0,0.00019178,2]
[350086461,1737611445297,-500.0,0.00019178,2]
[350086462,1737611445307,-577.7,0.00019178,2]
[350086463,1737611445317,-500.0,0.00019178,2]
[350086464,1737611445326,-171.61969154,0.00019178,2]
[350086465,1737611445335,-500.0,0.00019178,2]
[350086466,1737611445344,-906.73,0.00019178,2]
[350086467,1737611445353,-500.0,0.00019178,2]
[350086468,1737611445362,-502.97743495,0.00019178,2]
[350086469,1737611445372,-500.0,0.00019178,2]
[350086470,1737611445381,-188.18439151,0.00019178,2]
[350086471,1737611445390,-500.0,0.00019178,2]
[350086472,1737611445399,-500.0,0.00019178,2]
[350086473,1737611445409,-500.0,0.00019178,2]
[350086474,1737611445418,-500.0,0.00019178,2]
[350086475,1737611445428,-500.0,0.00019178,2]
[350086476,1737611445437,-500.0,0.00019178,2]
[350086477,1737611445447,-500.0,0.00019178,2]
[350086478,1737611445456,-500.0,0.00019178,2]
[350086479,1737611445466,-500.0,0.00019178,2]
[350086480,1737611445476,-500.0,0.00019178,2]
[350086481,1737611445486,-500.0,0.00019178,2]
[350086482,1737611445495,-500.0,0.00019178,2]
[350086483,1737611445504,-500.0,0.00019178,2]
[350086484,1737611445514,-500.0,0.00019178,2]
[350086485,1737611445524,-500.0,0.00019178,2]
[350086486,1737611445533,-500.0,0.00019178,2]
[350086487,1737611445542,-500.0,0.00019178,2]
[350086488,1737611445552,-500.0,0.00019178,2]
[350086489,1737611445561,-658.47,0.0001934,2]
[350086490,1737611445570,-500.0,0.00019349,2]
[350086491,1737611445580,-500.0,0.00019349,2]
[350086492,1737611445594,-635.49,0.00019349,2]
[350086493,1737611445604,-500.0,0.00019349,2]
[350086494,1737611445613,-175.87843106,0.0001935,2]
[350086495,1737611445772,-992.45,0.0001935,2]
[350086496,1737611445782,-500.0,0.0001935,2]
[350086497,1737611445791,-1922.27,0.0001935,2]
[350086498,1737611445801,-736.38,0.0001935,2]
[350086499,1737611445810,-598.74,0.0001935,2]
[350086500,1737611445819,-1530.88,0.0001935,2]
[350086501,1737611445829,-1226.94,0.0001935,2]
[350086502,1737611445838,-1453.16,0.0001935,2]
[350086503,1737611445847,-500.0,0.0001935,2]
[350086504,1737611445857,-1139.9,0.0001935,2]
[350086505,1737611445866,-500.0,0.0001935,2]
[350086506,1737611445876,-794.06,0.0001935,2]
[350086507,1737611445885,-500.0,0.0001935,2]
[350086508,1737611445894,-921.2,0.0001935,2]
[350086509,1737611445904,-2179.73,0.0001935,2]
[350086510,1737611445913,-2080.14,0.0001935,2]
[350086511,1737611445922,-1094.55,0.0001935,2]
[350086512,1737611445931,-898.14,0.0001935,2]
[350086513,1737611445940,-500.0,0.0001935,2]
[350086514,1737611445949,-500.0,0.0001935,2]
[350086515,1737611445959,-2682.36,0.0001935,2]
[350086516,1737611445968,-751.43,0.0001935,2]
[350086517,1737611445977,-500.0,0.0001935,2]
[350086518,1737611445987,-500.0,0.0001935,2]
[350086519,1737611445996,-503.13085065,0.0001935,2]
[350086520,1737611446005,-500.0,0.0001935,2]
[350086521,1737611446015,-500.0,0.0001935,2]
[350086522,1737611446024,-1027.46,0.0001935,2]
[350086523,1737611446033,-500.0,0.0001935,2]
[350086524,1737611446043,-500.0,0.0001935,2]
[350086525,1737611446052,-500.0,0.0001935,2]
[350086526,1737611446061,-501.62462531,0.0001935,2]
[350086527,1737611446071,-2511.24,0.0001935,2]
[350086528,1737611446080,-622.38,0.0001935,2]
[350086529,1737611446090,-500.0,0.0001935,2]
[350086530,1737611446099,-5000.0,0.00019352,2]
[350086531,1737611446108,-1461.5637482,0.000194,2]
[350086533,1737611446118,-500.0,0.00019432,2]
[350086534,1737611446127,-500.0,0.0001945,2]
[350086535,1737611446137,-500.0,0.0001945,2]
[350086536,1737611446147,-1001.4082,0.0001945,2]
[350086537,1737611446156,-500.0,0.0001945,2]
[350086538,1737611446165,-652.91,0.0001945,2]
[350086539,1737611446177,-500.0,0.0001945,2]
[350086540,1737611446187,-1103.54,0.0001945,2]
[350086541,1737611446197,-500.0,0.0001945,2]
[350086542,1737611446206,-500.0,0.0001945,2]
[350086543,1737611446215,-524.13108248,0.0001945,2]
[350086544,1737611446226,-500.0,0.0001945,2]
[350086545,1737611446235,-500.0,0.0001945,2]
[350086546,1737611446245,-500.0,0.0001945,2]
[350086547,1737611446255,-500.0,0.0001945,2]
[350086548,1737611446264,-576.24442212,0.0001945,2]
[350086549,1737611446274,-500.0,0.0001945,2]
[350086550,1737611446284,-523.75,0.0001945,2]
[350086551,1737611446293,-814.46,0.0001945,2]
[350086552,1737611446303,-500.0,0.0001945,2]
[350086553,1737611446313,-349.73572134,0.0001945,2]
[350086554,1737611446323,-521.67,0.0001945,2]
[350086555,1737611446332,-505.38177561,0.0001945,2]
[350086556,1737611446342,-500.0,0.0001945,2]
[350086557,1737611446351,-500.0,0.0001945,2]
[350086558,1737611446360,-500.0,0.0001945,2]
[350086559,1737611446370,-512.67217893,0.0001945,2]
[350086560,1737611446380,-500.0,0.0001945,2]
[350086561,1737611446389,-500.0,0.0001945,2]
[350086562,1737611446403,-550.36,0.0001945,2]
[350086563,1737611446413,-500.0,0.0001945,2]
[350086564,1737611446426,-661.84,0.0001945,2]
[350086565,1737611446436,-500.0,0.0001945,2]
[350086566,1737611446446,-500.0,0.0001945,2]
[350086567,1737611446456,-500.0,0.0001945,2]
[350086568,1737611446465,-500.0,0.0001945,2]
[350086569,1737611446477,-500.0,0.0001945,2]
[350086570,1737611446486,-756.71,0.0001945,2]
[350086571,1737611446495,-500.0,0.0001945,2]
[350086572,1737611446505,-500.0,0.0001945,2]
[350086573,1737611446515,-341.25069447,0.0001945,2]
[350086574,1737611446525,-500.0,0.0001945,2]
[350086575,1737611446534,-820.51,0.0001945,2]
[350086576,1737611446544,-500.0,0.0001945,2]
[350086577,1737611446555,-500.0,0.0001945,2]
[350086578,1737611446565,-170.95048312,0.0001945,2]
[350086579,1737611446576,-500.0,0.0001945,2]
[350086580,1737611446586,-500.0,0.0001945,2]
[350086581,1737611446601,-161.41082515,0.0001945,2]
[350086582,1737611446611,-500.0,0.0001945,2]
[350086583,1737611446621,-500.0,0.0001945,2]
[350086584,1737611446631,-870.52,0.0001945,2]
[350086585,1737611446643,-500.0,0.0001945,2]
[350086586,1737611446653,-500.0,0.0001945,2]
[350086587,1737611446664,-500.0,0.0001945,2]
[350086588,1737611446675,-500.0,0.0001945,2]
[350086589,1737611446685,-846.98,0.0001945,2]
[350086590,1737611446694,-560.38,0.0001945,2]
[350086591,1737611446704,-804.46,0.0001945,2]
[350086592,1737611446714,-500.0,0.0001945,2]
[350086593,1737611446725,-500.0,0.0001945,2]
[350086594,1737611446734,-497.26747614,0.0001945,2]
[350086595,1737611446743,-500.0,0.0001945,2]
[350086596,1737611446753,-596.15,0.0001945,2]
[350086597,1737611446764,-497.44198288,0.0001945,2]
[350086598,1737611446773,-500.0,0.0001945,2]
[350086599,1737611446783,-500.99393048,0.0001945,2]
[350086600,1737611446793,-505.62406565,0.0001945,2]
[350086601,1737611446803,-730.62,0.0001945,2]
[350086602,1737611446813,-500.83366856,0.0001945,2]
[350086603,1737611446822,-722.81,0.0001945,2]
[350086604,1737611446832,-502.36486883,0.0001945,2]
[350086605,1737611446843,-500.0,0.0001945,2]
[350086606,1737611446852,-517.72320627,0.0001945,2]
[350086607,1737611446862,-500.0,0.0001945,2]
[350086608,1737611446872,-500.0,0.0001945,2]
[350086609,1737611446881,-500.0,0.0001945,2]
[350086610,1737611446891,-926.24,0.0001945,2]
[350086611,1737611446900,-872.58,0.0001945,2]
[350086612,1737611446910,-756.42,0.0001945,2]
[350086613,1737611446919,-571.58,0.0001945,2]
[350086614,1737611446929,-441.794103,0.0001945,2]
[350086615,1737611446938,-907.07,0.0001945,2]
[350086616,1737611446948,-500.0,0.0001945,2]
[350086617,1737611446957,-500.0,0.0001945,2]
[350086618,1737611446967,-740.54,0.0001945,2]
[350086619,1737611446977,-500.0,0.0001945,2]
[350086620,1737611446986,-642.453793,0.0001945,2]
[350086621,1737611446996,-500.0,0.0001945,2]
[350086622,1737611447006,-500.0,0.0001945,2]
[350086623,1737611447015,-959.94,0.0001945,2]
[350086624,1737611447024,-159.529244,0.0001945,2]
[350086625,1737611447034,-500.0,0.0001945,2]
[350086626,1737611447043,-770.37,0.0001945,2]
[350086627,1737611447053,-160.233145,0.0001945,2]
[350086628,1737611447062,-500.0,0.0001945,2]
[350086629,1737611447071,-961.12,0.0001945,2]
[350086630,1737611447080,-928.68,0.0001945,2]
[350086631,1737611447090,-500.0,0.0001945,2]
[350086632,1737611447099,-500.0,0.0001945,2]
[350086633,1737611447109,-3389.92,0.0001945,2]
[350086634,1737611447118,-473.74848666,0.0001945,2]
[350086635,1737611447128,-500.0,0.0001945,2]
[350086636,1737611447137,-1163.05,0.0001945,2]
[350086637,1737611447147,-3328.2,0.0001945,2]
[350086638,1737611447156,-500.0,0.0001945,2]
[350086639,1737611447166,-647.35,0.0001945,2]
[350086640,1737611447176,-597.37,0.0001945,2]
[350086641,1737611447186,-1351.46,0.0001945,2]
[350086642,1737611447197,-500.0,0.0001945,2]
[350086643,1737611447206,-1916.09,0.0001945,2]
[350086644,1737611447215,-500.0,0.0001945,2]
[350086645,1737611447225,-1853.67,0.0001945,2]
[350086646,1737611447235,-500.0,0.0001945,2]
[350086647,1737611447245,-500.0,0.0001945,2]
[350086648,1737611447255,-500.0,0.0001945,2]
[350086649,1737611447264,-1180.89,0.0001945,2]
[350086650,1737611447273,-512.65491056,0.0001945,2]
[350086651,1737611447283,-604.47,0.0001945,2]
[350086652,1737611447292,-1225.17,0.0001945,2]
[350086653,1737611447302,-2192.28,0.0001945,2]
[350086654,1737611447311,-1087.59,0.0001945,2]
[350086655,1737611447321,-501.21750696,0.0001945,2]
[350086656,1737611447331,-500.0,0.0001945,2]
[350086657,1737611447340,-500.0,0.0001945,2]
[350086658,1737611447353,-500.0,0.0001945,2]
[350086659,1737611447362,-500.0,0.0001945,2]
[350086660,1737611447371,-2557.78,0.0001945,2]
[350086661,1737611447380,-503.6489101,0.0001945,2]
[350086662,1737611447390,-500.0,0.0001945,2]
[350086663,1737611447399,-500.0,0.0001945,2]
[350086664,1737611447409,-500.0,0.0001945,2]
[350086665,1737611447418,-687.86,0.0001945,2]
[350086666,1737611447428,-500.0,0.0001945,2]
[350086667,1737611447437,-526.68,0.0001945,2]
[350086668,1737611447447,-267.4126664,0.0001945,2]
[350086669,1737611447456,-505.85273738,0.0001945,2]
[350086670,1737611447465,-500.0,0.0001945,2]
[350086671,1737611447476,-1114.72,0.0001945,2]
[350086672,1737611447485,-500.0,0.0001945,2]
[350086673,1737611447495,-502.5240119,0.0001945,2]
[350086674,1737611447504,-1015.0,0.0001945,2]
[350086675,1737611447514,-499.6720841,0.0001945,2]
[350086676,1737611447524,-500.0,0.0001945,2]
[350086677,1737611447533,-500.0,0.0001945,2]
[350086678,1737611447542,-500.0,0.0001945,2]
[350086679,1737611447552,-2635.11,0.0001945,2]
[350086680,1737611447561,-500.0,0.0001945,2]
[350086681,1737611447571,-500.0,0.0001945,2]
[350086682,1737611447580,-164.12083521,0.0001945,2]
[350086683,1737611447591,-1230.27,0.0001945,2]
[350086684,1737611447602,-500.0,0.0001945,2]
[350086685,1737611447611,-582.1,0.0001945,2]
[350086686,1737611447620,-500.0,0.0001945,2]
[350086687,1737611447631,-561.04270112,0.0001945,2]
[350086688,1737611447642,-500.0,0.0001945,2]
[350086689,1737611447651,-502.38418617,0.0001945,2]
[350086690,1737611447661,-1842.56,0.0001945,2]
[350086691,1737611447672,-500.0,0.0001945,2]
[350086692,1737611447682,-500.0,0.0001945,2]
[350086693,1737611447691,-500.0,0.0001945,2]
[350086694,1737611447700,-536.15352252,0.0001945,2]
[350086695,1737611447710,-862.13,0.0001945,2]
[350086696,1737611447719,-500.0,0.0001945,2]
[350086697,1737611447729,-500.0,0.0001945,2]
[350086698,1737611447738,-687.14,0.0001945,2]
[350086699,1737611447747,-500.0,0.0001945,2]
[350086700,1737611447757,-500.0,0.0001945,2]
[350086701,1737611447766,-502.52625781,0.0001945,2]
[350086702,1737611447776,-500.0,0.0001945,2]
[350086703,1737611447785,-500.0,0.0001945,2]
[350086704,1737611447795,-500.0,0.0001945,2]
[350086705,1737611447808,-1223.08,0.0001945,2]
[350086706,1737611447817,-653.44,0.0001945,2]
[350086707,1737611447827,-500.0,0.0001945,2]
[350086708,1737611447837,-568.47,0.0001945,2]
[350086709,1737611447846,-500.0,0.0001945,2]
[350086710,1737611447856,-803.35,0.0001945,2]
[350086711,1737611447865,-519.41,0.0001945,2]
[350086712,1737611447875,-1382.01,0.0001945,2]
[350086713,1737611447884,-500.0,0.0001945,2]
[350086714,1737611447894,-1006.43,0.0001945,2]
[350086715,1737611447904,-500.0,0.0001945,2]
[350086716,1737611447913,-500.0,0.0001945,2]
[350086717,1737611447924,-1438.72,0.0001945,2]
[350086718,1737611447934,-1915.2,0.0001945,2]
[350086719,1737611447943,-500.0,0.0001945,2]
[350086720,1737611447953,-500.0,0.0001945,2]
[350086721,1737611447963,-798.39,0.0001945,2]
[350086722,1737611447973,-2677.87,0.0001945,2]
[350086723,1737611447983,-2057.62,0.0001945,2]
[350086724,1737611447992,-5446.26,0.00019451,2]
[350086725,1737611448001,-1056.81,0.00019451,2]
[350086726,1737611448011,-881.08,0.00019451,2]
[350086727,1737611448021,-2041.21,0.00019451,2]
[350086728,1737611448030,-500.0,0.00019451,2]
[350086729,1737611448040,-941.55,0.00019451,2]
[350086730,1737611448051,-1306.29,0.00019451,2]
[350086731,1737611448060,-1355.17,0.00019451,2]
[350086732,1737611448070,-500.0,0.00019451,2]
[350086733,1737611448079,-500.0,0.00019451,2]
[350086734,1737611448089,-516.42734901,0.00019451,2]
[350086735,1737611448099,-1000.0,0.00019451,2]
[350086736,1737611448108,-1220.7,0.00019451,2]
[350086737,1737611448118,-500.0,0.00019451,2]
[350086738,1737611448127,-1562.02,0.00019451,2]
[350086739,1737611448136,-2055.78,0.00019451,2]
[350086740,1737611448146,-500.0,0.00019451,2]
[350086741,1737611448156,-504.28576485,0.00019451,2]
[350086742,1737611448165,-513.60741864,0.00019452,2]
[350086743,1737611448175,-500.0,0.00019452,2]
[350086744,1737611448184,-493.33261238,0.00019452,2]
[350086745,1737611448194,-500.0,0.00019452,2]
[350086746,1737611448204,-469.44773285,0.00019452,2]
[350086747,1737611448214,-500.0,0.00019452,2]
[350086748,1737611448225,-500.0,0.00019452,2]
[350086749,1737611448235,-500.0,0.00019452,2]
[350086750,1737611448245,-500.0,0.00019452,2]
[350086751,1737611448256,-506.85197881,0.00019452,2]
[350086752,1737611448266,-500.0,0.00019452,2]
[350086753,1737611448275,-348.30457024,0.00019452,2]
[350086754,1737611448286,-500.0,0.00019452,2]
[350086755,1737611448296,-516.64234186,0.00019452,2]
[350086756,1737611448306,-500.0,0.00019452,2]
[350086757,1737611448315,-500.0,0.00019452,2]
[350086758,1737611448325,-500.0,0.00019452,2]
[350086759,1737611448335,-292.82072733,0.00019452,2]
[350086760,1737611448344,-507.90813339,0.00019452,2]
[350086761,1737611448354,-500.0,0.00019452,2]
[350086762,1737611448364,-500.0,0.00019452,2]
[350086763,1737611448374,-503.99076936,0.00019452,2]
[350086764,1737611448383,-500.0,0.00019452,2]
[350086765,1737611448392,-500.0,0.00019452,2]
[350086766,1737611448402,-492.9,0.00019452,2]
[350086767,1737611448411,-500.0,0.00019452,2]
[350086768,1737611448421,-500.0,0.00019452,2]
[350086769,1737611448431,-500.0,0.00019452,2]
[350086770,1737611448440,-516.16892051,0.00019452,2]
[350086771,1737611448450,-517.60421557,0.00019452,2]
[350086772,1737611448460,-500.0,0.00019452,2]
[350086773,1737611448469,-554.0490557,0.00019452,2]
[350086774,1737611448479,-282.27523107,0.00019452,2]
[350086775,1737611448489,-500.0,0.00019452,2]
[350086776,1737611448498,-500.0,0.00019452,2]
[350086777,1737611448508,-500.0,0.00019452,2]
[350086778,1737611448518,-500.0,0.00019452,2]
[350086779,1737611448527,-192.90269199,0.00019452,2]
[350086780,1737611448537,-500.0,0.00019452,2]
[350086781,1737611448546,-500.0,0.00019452,2]
[350086782,1737611448555,-500.0,0.00019452,2]
[350086783,1737611448565,-500.0,0.00019452,2]
[350086784,1737611448575,-500.0,0.00019452,2]
[350086785,1737611448584,-383.41162585,0.00019452,2]
[350086786,1737611448741,-500.0,0.00019452,2]
[350086787,1737611448753,-516.56017609,0.00019452,2]
[350086788,1737611448764,-500.0,0.00019452,2]
[350086789,1737611448774,-500.0,0.00019452,2]
[350086790,1737611448785,-500.0,0.00019452,2]
[350086791,1737611448794,-500.0,0.00019452,2]
[350086792,1737611448804,-500.0,0.00019452,2]
[350086793,1737611448814,-500.0,0.00019452,2]
[350086794,1737611448824,-500.0,0.00019452,2]
[350086795,1737611448835,-500.0,0.00019452,2]
[350086796,1737611448845,-500.0,0.00019452,2]
[350086797,1737611448855,-500.0,0.00019452,2]
[350086798,1737611448864,-500.0,0.00019452,2]
[350086799,1737611448873,-500.0,0.00019452,2]
[350086800,1737611448883,-500.0,0.00019452,2]
[350086801,1737611448892,-500.0,0.00019452,2]
[350086802,1737611448902,-500.0,0.00019452,2]
[350086803,1737611448912,-528.35435841,0.00019452,2]
[350086804,1737611448921,-500.0,0.00019452,2]
[350086805,1737611448931,-513.53,0.00019452,2]
[350086806,1737611448940,-500.0,0.00019452,2]
[350086807,1737611448950,-500.0,0.00019452,2]
[350086808,1737611448959,-500.0,0.00019452,2]
[350086809,1737611448968,-500.0,0.00019452,2]
[350086810,1737611448978,-500.0,0.00019452,2]
[350086811,1737611448988,-500.0,0.00019452,2]
[350086812,1737611448998,-500.0,0.00019452,2]
[350086813,1737611449007,-500.0,0.00019452,2]
[350086814,1737611449017,-500.0,0.00019452,2]
[350086815,1737611449026,-500.0,0.00019452,2]
[350086816,1737611449036,-500.0,0.00019452,2]
[350086817,1737611449046,-500.0,0.00019452,2]
[350086818,1737611449055,-500.0,0.00019452,2]
[350086819,1737611449065,-516.29679739,0.00019452,2]
[350086820,1737611449074,-524.28799583,0.00019452,2]
[350086821,1737611449084,-532.0,0.00019452,2]
[350086822,1737611449093,-500.0,0.00019452,2]
[350086823,1737611449103,-519.91233143,0.00019452,2]
[350086824,1737611449112,-500.0,0.00019452,2]
[350086825,1737611449122,-392.18,0.00019452,2]
[350086826,1737611449131,-854.04,0.00019452,2]
[350086827,1737611449146,-500.0,0.00019452,2]
[350086828,1737611449156,-511.80459735,0.00019452,2]
[350086829,1737611449165,-500.0,0.00019452,2]
[350086830,1737611449175,-500.0,0.00019452,2]
[350086831,1737611449184,-500.0,0.00019452,2]
[350086832,1737611449194,-515.09455209,0.00019452,2]
[350086833,1737611449203,-500.0,0.00019452,2]
[350086834,1737611449213,-500.0,0.00019452,2]
[350086835,1737611449222,-500.0,0.00019452,2]
[350086836,1737611449232,-500.0,0.00019452,2]
[350086837,1737611449242,-500.0,0.00019452,2]
[350086838,1737611449251,-500.0,0.00019452,2]
[350086839,1737611449261,-500.0,0.00019452,2]
[350086840,1737611449270,-500.0,0.00019452,2]
[350086841,1737611449280,-500.0,0.00019452,2]
[350086842,1737611449289,-751.33,0.00019452,2]
[350086843,1737611449299,-500.0,0.00019452,2]
[350086844,1737611449308,-500.0,0.00019452,2]
[350086845,1737611449318,-500.0,0.00019452,2]
[350086846,1737611449327,-645.53,0.00019452,2]
[350086847,1737611449337,-716.43,0.00019452,2]
[350086848,1737611449346,-500.0,0.00019452,2]
[350086849,1737611449355,-500.0,0.00019452,2]
[350086850,1737611449365,-500.0,0.00019452,2]
[350086851,1737611449375,-500.0,0.00019452,2]
[350086852,1737611449384,-500.0,0.00019452,2]
[350086853,1737611449394,-514.50354277,0.00019452,2]
[350086854,1737611449403,-500.0,0.00019452,2]
[350086855,1737611449412,-500.0,0.00019452,2]
[350086856,1737611449423,-500.0,0.00019452,2]
[350086857,1737611449432,-500.0,0.00019452,2]
[350086858,1737611449442,-500.0,0.00019452,2]
[350086859,1737611449451,-500.0,0.00019452,2]
[350086860,1737611449460,-500.0,0.00019452,2]
[350086861,1737611449470,-500.0,0.00019452,2]
[350086862,1737611449480,-500.0,0.00019452,2]
[350086863,1737611449490,-500.0,0.00019452,2]
[350086864,1737611449499,-500.0,0.00019452,2]
[350086865,1737611449509,-500.0,0.00019452,2]
[350086866,1737611449518,-500.0,0.00019452,2]
[350086867,1737611449527,-500.0,0.00019452,2]
[350086868,1737611449537,-500.0,0.00019452,2]
[350086869,1737611449547,-500.0,0.00019452,2]
[350086870,1737611449557,-500.0,0.00019452,2]
[350086871,1737611449566,-500.0,0.00019452,2]
[350086872,1737611449576,-500.0,0.00019452,2]
[350086873,1737611449586,-500.0,0.00019452,2]
[350086874,1737611449599,-500.0,0.00019452,2]
[350086875,1737611449609,-500.0,0.00019452,2]
[350086876,1737611449619,-500.0,0.00019452,2]
[350086877,1737611449630,-537.48,0.00019452,2]
[350086878,1737611449641,-500.0,0.00019452,2]
[350086879,1737611449650,-500.0,0.00019452,2]
[350086880,1737611449660,-500.0,0.00019452,2]
[350086881,1737611449670,-520.84917444,0.00019452,2]
[350086882,1737611449681,-522.06655542,0.00019452,2]
[350086883,1737611449690,-500.0,0.00019452,2]
[350086884,1737611449700,-500.0,0.00019452,2]
[350086885,1737611449710,-500.0,0.00019452,2]
[350086886,1737611449720,-500.0,0.00019452,2]
[350086887,1737611449734,-517.41620719,0.00019452,2]
[350086888,1737611449744,-489.42061349,0.00019452,2]
[350086889,1737611449753,-461.69288533,0.00019452,2]
[350086890,1737611449763,-500.0,0.00019452,2]
[350086891,1737611449773,-514.16666637,0.00019452,2]
[350086892,1737611449782,-500.0,0.00019452,2]
[350086893,1737611449792,-500.0,0.00019452,2]
[350086894,1737611449802,-500.0,0.00019452,2]
[350086895,1737611449811,-500.0,0.00019452,2]
[350086896,1737611449820,-500.0,0.00019452,2]
[350086897,1737611449829,-500.0,0.00019452,2]
[350086898,1737611449839,-500.0,0.00019452,2]
[350086899,1737611449848,-500.0,0.00019452,2]
[350086900,1737611449857,-500.0,0.00019452,2]
[350086901,1737611449866,-500.0,0.00019452,2]
[350086902,1737611449876,-435.16922819,0.00019452,2]
[350086903,1737611449885,-1962.38,0.00019452,2]
[350086904,1737611449895,-500.0,0.00019452,2]
[350086905,1737611449904,-200.47632575,0.00019452,2]
[350086906,1737611449914,-590.27730597,0.00019452,2]
[350086907,1737611449923,-500.0,0.00019452,2]
[350086908,1737611449932,-1116.01,0.00019452,2]
[350086909,1737611449942,-500.0,0.00019452,2]
[350086910,1737611449951,-1678.25,0.00019452,2]
[350086911,1737611449960,-500.0,0.00019452,2]
[350086912,1737611449970,-500.0,0.00019452,2]
[350086913,1737611449983,-500.0,0.00019452,2]
[350086914,1737611449992,-500.0,0.00019452,2]
[350086915,1737611450001,-500.0,0.00019452,2]
[350086916,1737611450011,-500.0,0.00019452,2]
[350086917,1737611450020,-500.0,0.00019452,2]
[350086918,1737611450029,-500.0,0.00019452,2]